bitfinex/quotes_BTCUSD_20250328
["timestamp","ask_amount","ask_price","bid_price","bid_amount"]
[1743200493399,0.0521815,84318.0,84316.0,0.0119177]
[1743200494224,0.237188,84322.0,84316.0,0.0119177]
[1743200494225,0.3,84323.0,84318.0,0.011859]
[1743200494540,0.3,84323.0,84321.0,0.249045]
[1743200494742,0.01860651,84322.0,84321.0,0.249045]
[1743200496128,0.01860651,84322.0,84321.0,0.250045]
[1743200498023,0.01860651,84322.0,84321.0,0.251045]
[1743200499619,0.3,84329.0,84324.0,0.237178]
[1743200499795,0.3,84329.0,84325.0,0.000985]
[1743200500203,0.3,84329.0,84325.0,0.0059753]
[1743200500829,0.301,84329.0,84325.0,0.0059753]
[1743200501238,0.301,84329.0,84325.0,0.2431503]
[1743200501455,0.3,84329.0,84325.0,0.23816]
[1743200501617,7e-05,86112.0,84338.0,0.236141]
[1743200501618,1.48097788,84339.0,84338.0,0.236141]
[1743200501817,1.42997388,84339.0,84334.0,0.237149]
[1743200502022,1.18097788,84339.0,84335.0,0.249004]
[1743200502198,1.18097788,84339.0,84336.0,0.249001]
[1743200502399,0.3,84338.0,84336.0,0.248001]
[1743200502821,0.3,84338.0,84336.0,0.248]
[1743200503067,0.3,84338.0,84335.0,0.249004]
[1743200503959,0.537141,84338.0,84334.0,0.249009]
[1743200504159,0.303,84338.0,84334.0,0.249009]
[1743200504413,0.32160475,84338.0,84332.0,0.011857]
[1743200504574,0.32160475,84338.0,84332.0,0.249013]
[1743200504770,0.55574675,84338.0,84334.0,0.0009919]
[1743200504991,0.540142,84338.0,84334.0,0.0009919]
[1743200505204,0.3,84336.0,84334.0,0.0009919]
[1743200506736,0.549006,84336.0,84334.0,0.0009919]
[1743200507397,0.549006,84336.0,84334.0,0.0109919]
[1743200507797,0.553006,84336.0,84334.0,0.0109919]
[1743200509687,0.65526172,84336.0,84334.0,0.0109919]
[1743200510278,0.011857,84335.0,84334.0,0.0109919]
[1743200512095,0.013857,84335.0,84334.0,0.0109919]
[1743200513175,0.015857,84335.0,84334.0,0.0109919]
[1743200514263,0.015857,84335.0,84334.0,0.011161]
[1743200514643,0.43011464,84335.0,84334.0,0.011161]
[1743200515160,0.44872008,84335.0,84334.0,0.011161]
[1743200518687,0.43011464,84335.0,84334.0,0.011161]
[1743200520957,0.43011464,84335.0,84334.0,0.023018]
[1743200520958,0.004,84335.0,84334.0,0.023018]
[1743200521177,0.004,84335.0,84334.0,0.02380879]
[1743200521566,0.004,84335.0,84334.0,0.023018]
[1743200521865,0.002,84335.0,84334.0,0.023018]
[1743200522134,0.0206033,84335.0,84334.0,0.023018]
[1743200522933,0.0186033,84335.0,84334.0,0.023018]
[1743200525319,0.0186033,84335.0,84334.0,0.0280086]
[1743200527536,0.0186033,84335.0,84334.0,0.02879939]
[1743200530273,0.0003382,84336.0,84335.0,0.249006]
[1743200530423,0.0003382,84336.0,84335.0,0.2539604]
[1743200531774,0.0013382,84336.0,84335.0,0.2539604]
[1743200534447,2e-07,84336.0,84335.0,0.2539604]
[1743200535548,0.0003382,84342.0,84341.0,0.248988]
[1743200535746,0.0003382,84342.0,84341.0,0.2539465]
[1743200535952,0.1324,84367.0,84341.0,0.2539465]
[1743200535953,0.000338,84369.0,84368.0,0.011852]
[1743200536151,0.000338,84369.0,84368.0,0.382291]
[1743200536349,0.000338,84369.0,84368.0,0.249891]
[1743200536561,0.000338,84369.0,84368.0,0.382371]
[1743200536766,0.00077966,84369.0,84368.0,0.249891]
[1743200537613,0.00077966,84369.0,84368.0,0.251891]
[1743200539100,0.00077966,84369.0,84368.0,0.252891]
[1743200540774,0.00077966,84369.0,84368.0,0.2578779]
[1743200542278,0.248867,84383.0,84374.0,0.248888]
[1743200542478,0.631779,84378.0,84377.0,0.0009944]
[1743200542681,0.680979,84378.0,84377.0,0.0009944]
[1743200542884,0.69957527,84378.0,84377.0,0.0009944]
[1743200543084,1.14515435,84378.0,84377.0,0.0009944]
[1743200543244,1.25941199,84378.0,84377.0,0.0009944]
[1743200543962,1.24081572,84378.0,84377.0,0.0009944]
[1743200544167,1.24181572,84378.0,84377.0,0.0009944]
[1743200545295,1.12755808,84378.0,84377.0,0.0009944]
[1743200545517,1.13255808,84378.0,84377.0,0.0009944]
[1743200545923,1.13755808,84378.0,84377.0,0.0009944]
[1743200547242,1.15615668,84378.0,84377.0,0.0009944]
[1743200547599,1.13755808,84378.0,84377.0,0.0009944]
[1743200547800,1.25181572,84378.0,84377.0,0.0009944]
[1743200550570,1.13755808,84378.0,84377.0,0.0009944]
[1743200550786,0.03417908,84378.0,84377.0,0.0009944]
[1743200550995,0.011,84378.0,84377.0,0.0128454]
[1743200551776,0.006,84378.0,84377.0,0.0128454]
[1743200552518,0.006338,84378.0,84377.0,0.0128454]
[1743200552823,0.000338,84378.0,84377.0,0.0128454]
[1743200555150,0.01893232,84378.0,84377.0,0.0128454]
[1743200555979,0.000338,84378.0,84377.0,0.0177609]
[1743200564614,0.000338,84378.0,84377.0,0.0179298]
[1743200565702,0.0189326,84378.0,84377.0,0.0179298]
[1743200566399,0.000338,84378.0,84377.0,0.0179298]
[1743200588460,0.01893272,84378.0,84377.0,0.0179298]
[1743200588820,0.000338,84378.0,84377.0,0.0179298]
[1743200598465,0.01893263,84378.0,84377.0,0.0179298]
[1743200598640,0.000338,84378.0,84377.0,0.0179298]
[1743200605101,0.01893239,84378.0,84377.0,0.0179298]
[1743200605503,0.01893239,84378.0,84377.0,0.01871817]
[1743200605957,0.000338,84378.0,84377.0,0.01871817]
[1743200606789,0.000338,84378.0,84377.0,0.01971817]
[1743200606993,0.000338,84378.0,84377.0,0.02071817]
[1743200608742,1e-06,84378.0,84377.0,0.22821666]
[1743200608919,1e-06,84378.0,84377.0,0.27371666]
[1743200609125,1e-06,84378.0,84377.0,0.27292829]
[1743200609628,1e-06,84378.0,84377.0,0.27192829]
[1743200609825,1e-06,84378.0,84377.0,0.27592829]
[1743200610017,1e-06,84378.0,84377.0,0.27492829]
[1743200610226,1e-06,84378.0,84377.0,0.1570498]
[1743200610695,1e-06,84378.0,84377.0,0.15783747]
[1743200614292,1e-06,84378.0,84377.0,0.41558696]
[1743200614513,1e-06,84378.0,84377.0,0.41479929]
[1743200615444,1e-06,84378.0,84377.0,0.41079929]
[1743200615721,1e-06,84378.0,84377.0,0.41679929]
[1743200616485,1e-06,84378.0,84377.0,0.41379929]
[1743200617091,1e-06,84378.0,84377.0,0.41879929]
[1743200617720,1e-06,84378.0,84377.0,0.41379929]
[1743200618034,1e-06,84378.0,84377.0,0.41879929]
[1743200618391,1e-06,84378.0,84377.0,0.41279929]
[1743200618592,1e-06,84378.0,84377.0,1.38969929]
[1743200618794,1e-06,84378.0,84377.0,1.39569929]
[1743200620611,1e-06,84378.0,84377.0,1.39645929]
[1743200622383,0.01859137,84378.0,84377.0,1.39645929]
[1743200622890,1e-06,84378.0,84377.0,1.39645929]
[1743200633158,0.01859173,84378.0,84377.0,1.39645929]
[1743200633659,1e-06,84378.0,84377.0,1.39645929]
[1743200634924,2.1e-07,84384.0,84383.0,0.01185]
[1743200635280,2.1e-07,84384.0,84383.0,0.14641471]
[1743200635687,2.1e-07,84384.0,84383.0,0.1832245]
[1743200636063,2.1e-07,84384.0,84383.0,0.14641471]
[1743200636276,2.1e-07,84384.0,84383.0,0.59572427]
[1743200636512,2.1e-07,84384.0,84383.0,0.59993775]
[1743200636967,2.1e-07,84384.0,84383.0,0.59493775]
[1743200637330,2.1e-07,84384.0,84383.0,0.59893775]
[1743200637561,2.1e-07,84384.0,84383.0,0.60493775]
[1743200637938,2.1e-07,84384.0,84383.0,0.60093775]
[1743200638792,2.1e-07,84384.0,84383.0,0.60693775]
[1743200639199,2.1e-07,84384.0,84383.0,0.90693775]
[1743200639399,2.1e-07,84384.0,84383.0,1.11373775]
[1743200640212,2.1e-07,84384.0,84383.0,1.13769584]
[1743200640399,2.1e-07,84384.0,84383.0,1.16269584]
[1743200640597,2.1e-07,84384.0,84383.0,1.20889584]
[1743200641613,0.0001689,84396.0,84395.0,0.011849]
[1743200641978,0.0001689,84396.0,84395.0,0.9295928]
[1743200642194,0.0001689,84396.0,84395.0,0.92880689]
[1743200642387,9e-07,84396.0,84395.0,0.96561172]
[1743200643180,9e-07,84396.0,84395.0,0.97061172]
[1743200643385,9e-07,84396.0,84395.0,0.97461172]
[1743200643649,9e-07,84396.0,84395.0,0.96561172]
[1743200644009,9e-07,84396.0,84395.0,0.97661172]
[1743200645785,9e-07,84396.0,84395.0,0.98530112]
[1743200646379,9e-07,84396.0,84395.0,0.94849629]
[1743200646579,9e-07,84396.0,84395.0,0.85251809]
[1743200646747,9e-07,84396.0,84395.0,0.8161174]
[1743200648712,9e-07,84396.0,84395.0,0.8164552]
[1743200649221,9e-07,84396.0,84395.0,1.3807352]
[1743200651659,9e-07,84396.0,84395.0,1.3805752]
[1743200656863,9e-07,84396.0,84395.0,0.9680752]
[1743200662585,9e-07,84396.0,84395.0,1.09687369]
[1743200662793,9e-07,84396.0,84395.0,1.13370884]
[1743200663782,9e-07,84396.0,84395.0,0.96391369]
[1743200663943,9e-07,84396.0,84395.0,1.09667369]
[1743200666602,9e-07,84396.0,84395.0,1.13353662]
[1743200680041,9e-07,84396.0,84395.0,0.98623577]
[1743200680180,9e-07,84396.0,84395.0,1.10682677]
[1743200680734,9e-07,84396.0,84395.0,1.11867577]
[1743200684792,9e-07,84396.0,84395.0,1.24377577]
[1743200684995,9e-07,84396.0,84395.0,1.11867577]
[1743200685687,9e-07,84396.0,84395.0,0.98623577]
[1743200685894,9e-07,84396.0,84395.0,1.11851577]
[1743200686795,9e-07,84396.0,84395.0,1.11847577]
[1743200687876,9e-07,84396.0,84395.0,1.00425813]
[1743200688079,9e-07,84396.0,84395.0,0.99484813]
[1743200690229,9e-07,84396.0,84395.0,0.86256813]
[1743200690429,9e-07,84396.0,84395.0,0.99480813]
[1743200690832,9e-07,84396.0,84395.0,0.9579452]
[1743200692158,0.00184057,84404.0,84400.0,0.248813]
[1743200692366,0.00184057,84404.0,84395.0,0.5813615]
[1743200692367,0.0824,84396.0,84395.0,0.5813615]
[1743200692575,0.094248,84396.0,84395.0,0.5766125]
[1743200693779,0.1405169,84396.0,84395.0,0.5716125]
[1743200694180,0.1405169,84396.0,84395.0,0.5696125]
[1743200694722,0.1405169,84396.0,84395.0,0.5736125]
[1743200695537,0.1591065,84396.0,84395.0,0.5696125]
[1743200695666,0.1591065,84396.0,84395.0,0.5726125]
[1743200695885,0.27335905,84396.0,84395.0,0.5726125]
[1743200696098,0.57335905,84396.0,84395.0,0.5726125]
[1743200696629,0.57335905,84396.0,84395.0,0.5686125]
[1743200696812,0.55476945,84396.0,84395.0,0.5686125]
[1743200697254,0.55576945,84396.0,84395.0,0.5686125]
[1743200698055,0.55576945,84396.0,84395.0,0.5656125]
[1743200698915,0.55576945,84396.0,84395.0,0.0013325]
[1743200699121,0.55576945,84396.0,84395.0,0.0003378]
[1743200702840,0.4415169,84396.0,84395.0,0.0003378]
[1743200706347,0.248823,84397.0,84396.0,0.0584831]
[1743200706798,0.011848,84397.0,84396.0,0.0584831]
[1743200706997,1.18097788,84398.0,84396.0,0.0584831]
[1743200707242,0.25090762,84404.0,84397.0,0.248823]
[1743200707443,0.00210362,84404.0,84402.0,0.248807]
[1743200707734,0.248805,84403.0,84397.0,0.248821]
[1743200707886,0.01395062,84404.0,84399.0,0.248815]
[1743200708087,0.01395062,84404.0,84397.0,0.247821]
[1743200708088,0.011847,84403.0,84397.0,0.247821]
[1743200708301,0.011848,84402.0,84397.0,0.247821]
[1743200708875,0.248809,84402.0,84397.0,0.247821]
[1743200710500,0.011848,84401.0,84396.0,0.2954601]
[1743200711917,0.011848,84401.0,84396.0,0.0584831]
[1743200711918,0.011848,84400.0,84396.0,0.0584831]
[1743200712128,0.011848,84400.0,84398.0,0.00099]
[1743200713014,0.248817,84400.0,84398.0,0.00099]
[1743200714478,0.011848,84402.0,84398.0,0.00099]
[1743200715577,0.248814,84401.0,84398.0,0.00099]
[1743200715803,0.011848,84401.0,84398.0,0.00099]
[1743200717169,0.03043775,84401.0,84398.0,0.00099]
[1743200717360,0.236963,84402.0,84398.0,0.249807]
[1743200718320,0.236963,84402.0,84398.0,0.012838]
[1743200718890,0.236965,84401.0,84398.0,0.00099]
[1743200719104,0.248817,84400.0,84398.0,0.00099]
[1743200720140,0.26740688,84400.0,84398.0,0.00099]
[1743200721559,0.01858988,84400.0,84398.0,0.23796]
[1743200721715,0.01858988,84400.0,84399.0,0.011848]
[1743200722081,0.00210362,84404.0,84403.0,0.011847]
[1743200722513,0.00210362,84404.0,84403.0,0.248805]
[1743200722869,0.00210362,84404.0,84403.0,0.2537403]
[1743200724426,0.02069178,84404.0,84403.0,0.2537403]
[1743200724824,0.00210362,84404.0,84403.0,0.2537403]
[1743200731762,0.02069198,84404.0,84403.0,0.2537403]
[1743200735030,0.00210362,84404.0,84403.0,0.2537403]
[1743200738677,0.00210362,84404.0,84403.0,0.260541]
[1743200739034,0.00210362,84404.0,84403.0,0.262541]
[1743200739658,0.00210362,84404.0,84403.0,0.826861]
[1743200739933,0.00210362,84404.0,84403.0,0.824861]
[1743200740136,0.00210362,84404.0,84403.0,0.828861]
[1743200740321,0.00210362,84404.0,84403.0,0.956561]
[1743200740521,0.00210362,84404.0,84403.0,0.958561]
[1743200742995,0.00210362,84404.0,84403.0,0.956561]
[1743200744046,0.00210362,84404.0,84403.0,0.960561]
[1743200745103,0.00210362,84404.0,84403.0,1.093161]
[1743200746383,0.00210362,84404.0,84403.0,1.0863603]
[1743200747623,0.00210362,84404.0,84403.0,0.8260603]
[1743200747828,0.00210362,84404.0,84403.0,0.5772553]
[1743200748098,0.00210362,84404.0,84403.0,0.5891023]
[1743200748729,0.00210362,84404.0,84403.0,0.5851023]
[1743200749545,0.00210362,84404.0,84403.0,0.5861023]
[1743200750043,0.00210362,84404.0,84403.0,0.5811023]
[1743200750251,0.00210362,84404.0,84403.0,0.5821023]
[1743200750471,0.00210362,84404.0,84403.0,0.5831023]
[1743200751030,0.00210362,84404.0,84403.0,0.5712553]
[1743200751812,0.00210362,84404.0,84403.0,0.8103503]
[1743200752019,0.00210362,84404.0,84403.0,0.8153339]
[1743200754104,0.00210362,84404.0,84403.0,0.2557886]
[1743200754506,0.00210362,84404.0,84403.0,0.0188306]
[1743200754902,0.00210362,84404.0,84403.0,0.0069836]
[1743200760432,0.00210362,84404.0,84403.0,0.0188306]
[1743200761461,0.00210362,84404.0,84403.0,0.01961693]
[1743200762702,0.00210362,84404.0,84403.0,0.01861693]
[1743200763047,0.00210362,84404.0,84403.0,0.02161693]
[1743200763341,0.00210362,84404.0,84403.0,0.02061693]
[1743200763493,0.00210362,84404.0,84403.0,0.02261693]
[1743200764901,0.00210362,84404.0,84403.0,0.0218306]
[1743200765106,0.00210362,84404.0,84403.0,0.0221684]
[1743200765524,0.00210362,84404.0,84403.0,0.02295474]
[1743200766706,0.00210362,84404.0,84403.0,0.0103214]
[1743200767793,0.00210362,84404.0,84403.0,0.0053214]
[1743200768186,0.00210362,84404.0,84403.0,0.0113214]
[1743200769101,0.00210362,84404.0,84403.0,0.2482794]
[1743200770406,0.00210362,84404.0,84403.0,0.2601264]
[1743200779742,0.00210362,84404.0,84403.0,0.0231684]
[1743200779921,0.00210362,84404.0,84403.0,0.0113214]
[1743200781237,0.00210362,84404.0,84403.0,0.0231684]
[1743200782402,0.00103175,84404.0,84403.0,0.0231684]
[1743200790438,0.00103175,84404.0,84403.0,0.0228384]
[1743200816162,0.00103175,84404.0,84403.0,0.0275874]
[1743200823069,0.00103175,84404.0,84403.0,0.0157404]
[1743200824417,0.05209592,84404.0,84403.0,0.0157404]
[1743200824622,0.01287875,84404.0,84403.0,0.0063378]
[1743200825396,0.09397875,84404.0,84403.0,0.0063378]
[1743200826196,0.10589427,84404.0,84403.0,0.0063378]
[1743200826406,0.09397875,84404.0,84403.0,0.0063378]
[1743200826627,0.17803302,84404.0,84403.0,0.0063378]
[1743200827247,0.18974856,84404.0,84403.0,0.0063378]
[1743200829318,0.10569429,84404.0,84403.0,0.0063378]
[1743200833214,0.248805,84403.0,84402.0,0.0548209]
[1743200834778,0.26739331,84403.0,84402.0,0.0578209]
[1743200835463,0.26739331,84403.0,84402.0,0.0608209]
[1743200835827,0.248805,84403.0,84402.0,0.0608209]
[1743200836551,0.31286322,84403.0,84402.0,0.0608209]
[1743200839295,0.31286322,84403.0,84402.0,0.0508209]
[1743200839444,0.43906322,84403.0,84402.0,0.0508209]
[1743200840134,0.43906322,84403.0,84402.0,0.0478209]
[1743200841432,0.43906322,84403.0,84402.0,0.0448209]
[1743200841828,0.43906322,84403.0,84402.0,0.0468209]
[1743200842235,0.44106322,84403.0,84402.0,0.0448209]
[1743200842635,0.44306322,84403.0,84402.0,0.0448209]
[1743200844105,0.46165267,84403.0,84402.0,0.0448209]
[1743200844486,0.44306322,84403.0,84402.0,0.0448209]
[1743200844891,0.54306322,84403.0,84402.0,0.0448209]
[1743200846485,0.84306322,84403.0,84402.0,0.0448209]
[1743200848544,0.84306322,84403.0,84402.0,0.0451587]
[1743200848780,0.84323212,84403.0,84402.0,0.0451587]
[1743200850118,0.84323212,84403.0,84402.0,0.0351587]
[1743200850319,1.26063212,84403.0,84402.0,0.0351587]
[1743200854803,1.27922315,84403.0,84402.0,0.0351587]
[1743200855007,1.26063212,84403.0,84402.0,0.0351587]
[1743200855707,1.25863212,84403.0,84402.0,0.0351587]
[1743200855905,1.25963212,84403.0,84402.0,0.0351587]
[1743200856326,1.26163212,84403.0,84402.0,0.0351587]
[1743200858257,1.28022333,84403.0,84402.0,0.0351587]
[1743200860232,1.26163212,84403.0,84402.0,0.0351587]
[1743200864849,1.28022265,84403.0,84402.0,0.0351587]
[1743200864985,1.26163212,84403.0,84402.0,0.0351587]
[1743200867486,1.28022264,84403.0,84402.0,0.0351587]
[1743200870623,1.29976349,84403.0,84402.0,7e-07]
[1743200871234,1.28522264,84403.0,84402.0,7e-07]
[1743200871422,1.41694264,84403.0,84402.0,7e-07]
[1743200872093,1.39835212,84403.0,84402.0,7e-07]
[1743200876829,1.41694339,84403.0,84402.0,7e-07]
[1743200877057,1.39835212,84403.0,84402.0,7e-07]
[1743200879721,1.41694354,84403.0,84402.0,7e-07]
[1743200880903,1.39835212,84403.0,84402.0,7e-07]
[1743200881108,0.248864,84383.0,84382.0,0.0722673]
[1743200882572,0.248864,84383.0,84382.0,0.0762673]
[1743200884401,0.26745619,84383.0,84382.0,0.0762673]
[1743200884533,0.26745619,84383.0,84382.0,0.0764363]
[1743200884747,0.26779419,84383.0,84382.0,0.0764363]
[1743200885344,0.000338,84383.0,84382.0,0.0764363]
[1743200885544,0.000338,84383.0,84382.0,0.1360863]
[1743200885749,0.000338,84383.0,84382.0,0.13687358]
[1743200885962,0.000338,84383.0,84382.0,0.56567207]
[1743200886154,0.0001689,84403.0,84402.0,0.377509]
[1743200888025,0.0001689,84403.0,84402.0,0.380509]
[1743200888399,0.0001689,84403.0,84402.0,0.39247314]
[1743200888804,0.0001689,84403.0,84402.0,0.52419314]
[1743200889034,0.0001689,84403.0,84402.0,0.52619314]
[1743200889958,0.0001689,84403.0,84402.0,0.65499163]
[1743200890357,0.0001689,84403.0,84402.0,0.95995153]
[1743200890556,0.0001689,84403.0,84402.0,0.95695153]
[1743200890918,0.0001689,84403.0,84402.0,0.96095153]
[1743200891101,0.0001689,84403.0,84402.0,0.96772898]
[1743200891258,0.0001689,84403.0,84402.0,0.96872738]
[1743200891462,0.0001689,84403.0,84402.0,0.96472738]
[1743200891664,0.0001689,84403.0,84402.0,0.96972738]
[1743200892089,0.0001689,84403.0,84402.0,0.96772738]
[1743200892459,0.0001689,84403.0,84402.0,0.97172738]
[1743200892670,0.0001689,84403.0,84402.0,0.96772738]
[1743200892879,0.0001689,84403.0,84402.0,0.96094993]
[1743200893078,0.0001689,84403.0,84402.0,0.96494993]
[1743200894309,0.0001689,84403.0,84402.0,1.37744993]
[1743200903058,0.0001689,84403.0,84402.0,1.94168993]
[1743200909386,0.0001689,84403.0,84402.0,1.94845172]
[1743200910501,0.0001689,84403.0,84402.0,1.94774672]
[1743200918107,1e-08,84404.0,84403.0,0.32638785]
[1743200918348,1e-08,84404.0,84403.0,0.44561809]
[1743200918526,1e-08,84404.0,84403.0,0.48240194]
[1743200919338,1e-08,84404.0,84403.0,0.48916373]
[1743200919656,1e-08,84404.0,84403.0,0.49416373]
[1743200920936,1e-08,84404.0,84403.0,0.48916373]
[1743200921498,1e-08,84404.0,84403.0,0.49916373]
[1743200921627,1e-08,84404.0,84403.0,0.49516373]
[1743200921827,1e-08,84404.0,84403.0,0.57436373]
[1743200922023,1e-08,84404.0,84403.0,0.57936373]
[1743200922455,1e-08,84404.0,84403.0,0.58411173]
[1743200923444,1e-08,84404.0,84403.0,0.99661173]
[1743200927291,1e-08,84404.0,84403.0,0.99061173]
[1743200927700,1e-08,84404.0,84403.0,0.99661173]
[1743200927874,1e-08,84404.0,84403.0,0.98984994]
[1743200928276,1e-08,84404.0,84403.0,0.98484994]
[1743200928508,1e-08,84404.0,84403.0,0.98984994]
[1743200932878,1e-08,84404.0,84403.0,0.99018774]
[1743200934903,9.1e-07,84411.0,84410.0,0.32638685]
[1743200935105,9.1e-07,84411.0,84410.0,0.60823504]
[1743200935750,9.1e-07,84411.0,84410.0,0.61503275]
[1743200936085,9.1e-07,84411.0,84410.0,1.02753275]
[1743200936285,9.1e-07,84411.0,84410.0,1.03353275]
[1743200936495,0.0001689,84420.0,84418.0,0.02638585]
[1743200936682,0.0001689,84420.0,84418.0,1.02255153]
[1743200936974,0.0001689,84420.0,84418.0,1.25966574]
[1743200937388,0.0001689,84420.0,84418.0,1.26646345]
[1743200937524,0.00221307,84419.0,84418.0,1.29582772]
[1743200937729,0.00221307,84419.0,84418.0,1.26646345]
[1743200938262,0.00221307,84419.0,84418.0,1.27146345]
[1743200938682,0.00221307,84419.0,84418.0,1.28707973]
[1743200939318,0.02079357,84419.0,84418.0,1.37140253]
[1743200939725,0.00221307,84419.0,84418.0,1.37140253]
[1743200940080,0.00221307,84419.0,84418.0,1.38138953]
[1743200942744,0.00221307,84419.0,84418.0,1.38130953]
[1743200943512,0.00221307,84419.0,84418.0,1.24954953]
[1743200943709,0.00221307,84419.0,84418.0,1.30596953]
[1743200943952,0.00221307,84419.0,84418.0,1.17424953]
[1743200944108,0.00221307,84419.0,84418.0,1.30604953]
[1743200945280,0.00221307,84419.0,84418.0,1.29518125]
[1743200946402,0.00221307,84419.0,84418.0,1.85926125]
[1743200950285,0.00221307,84419.0,84418.0,1.72746125]
[1743200950512,0.00221307,84419.0,84418.0,1.86070125]
[1743200950655,0.00221307,84419.0,84418.0,1.87155106]
[1743200952078,0.00221307,84419.0,84418.0,1.87151106]
[1743200952302,0.00221307,84419.0,84418.0,1.84794741]
[1743200952508,0.00221307,84419.0,84418.0,1.86248826]
[1743200953811,0.00221307,84419.0,84418.0,1.85163845]
[1743200954040,0.00221307,84419.0,84418.0,1.28489196]
[1743200954236,0.00221307,84419.0,84418.0,1.37146811]
[1743200954401,0.00221307,84419.0,84418.0,1.49172575]
[1743200954599,0.00221307,84419.0,84418.0,1.38346811]
[1743200954821,0.08201307,84419.0,84418.0,1.38370811]
[1743200956853,0.08201307,84419.0,84418.0,1.3769104]
[1743200958906,0.08201307,84419.0,84418.0,0.9644104]
[1743200961045,0.08201307,84419.0,84418.0,0.8308104]
[1743200968006,0.13081307,84419.0,84418.0,0.5820494]
[1743200968243,0.134241,84419.0,84418.0,0.5938944]
[1743200969030,0.134241,84419.0,84418.0,0.5878944]
[1743200969224,0.134241,84419.0,84418.0,0.5908944]
[1743200969442,0.134241,84419.0,84418.0,0.5848944]
[1743200969754,0.134241,84419.0,84418.0,0.5878944]
[1743200970092,0.134241,84419.0,84418.0,0.5882322]
[1743200970299,0.134241,84419.0,84418.0,0.0241522]
[1743200970494,0.134241,84419.0,84418.0,0.0123072]
[1743200970822,0.134241,84419.0,84418.0,0.0073202]
[1743200971016,0.146086,84419.0,84418.0,0.0073202]
[1743200972237,0.134241,84419.0,84418.0,0.0073202]
[1743200973417,0.005641,84419.0,84418.0,0.0191652]
[1743200973620,0.00221307,84419.0,84418.0,0.03080703]
[1743200974775,0.00221307,84419.0,84418.0,0.0191652]
[1743200974975,0.08071307,84419.0,84418.0,0.0191652]
[1743200975138,0.08071307,84419.0,84418.0,0.0073202]
[1743200975488,0.13369152,84419.0,84418.0,0.0191652]
[1743200975674,0.13369152,84419.0,84418.0,0.0241595]
[1743200979161,0.17198586,84419.0,84418.0,0.0241595]
[1743200979366,0.13369152,84419.0,84418.0,0.0241595]
[1743200985085,0.13369152,84419.0,84418.0,0.0123145]
[1743200985229,0.13369152,84419.0,84415.0,0.0009968]
[1743200985428,0.13369152,84419.0,84415.0,0.2497648]
[1743200986550,0.13369152,84419.0,84415.0,0.2527648]
[1743200987065,0.13369152,84419.0,84415.0,0.2557648]
[1743200987282,0.011846,84416.0,84415.0,0.0069968]
[1743200987837,0.01522445,84416.0,84415.0,0.0069968]
[1743200988281,0.01522445,84416.0,84415.0,0.0039968]
[1743200988682,0.01522445,84416.0,84415.0,0.0079968]
[1743200989081,0.01522445,84416.0,84415.0,0.0049968]
[1743200989292,0.01522445,84416.0,84415.0,0.0079968]
[1743200989293,0.19026616,84416.0,84415.0,0.0079968]
[1743200990596,0.09192445,84416.0,84415.0,0.0079968]
[1743200993321,0.00337845,84416.0,84415.0,0.0079968]
[1743200993749,0.248766,84417.0,84415.0,0.0079968]
[1743200993912,0.00334014,84416.0,84415.0,0.0079968]
[1743200994312,0.00334014,84416.0,84415.0,0.0083346]
[1743200994554,0.08826481,84416.0,84415.0,0.0083346]
[1743200994762,0.09160495,84416.0,84415.0,0.0083346]
[1743200994916,0.16830495,84416.0,84415.0,0.0083346]
[1743200995339,0.16830495,84416.0,84415.0,0.0053346]
[1743200995795,0.09188614,84416.0,84415.0,0.0083346]
[1743200996024,0.08004014,84416.0,84415.0,0.0053346]
[1743200996244,0.08004014,84416.0,84415.0,0.0093346]
[1743200997166,0.00334014,84416.0,84415.0,0.0093346]
[1743200998779,0.00221307,84419.0,84415.0,0.2581046]
[1743200998971,0.00334014,84418.0,84415.0,0.2581046]
[1743200999209,0.00334014,84418.0,84415.0,0.2462586]
[1743200999647,0.00334014,84418.0,84415.0,0.2422586]
[1743200999775,0.00334014,84418.0,84415.0,0.2382586]
[1743200999976,0.00334014,84418.0,84415.0,0.2442586]
[1743201000181,0.00334014,84418.0,84415.0,0.2412586]
[1743201000381,0.00334014,84418.0,84416.0,0.248765]
[1743201001548,0.00334014,84418.0,84417.0,0.011845]
[1743201002775,0.00334014,84418.0,84417.0,0.014845]
[1743201003558,0.00334014,84418.0,84417.0,0.017845]
[1743201004203,0.00334014,84418.0,84417.0,0.01863074]
[1743201004543,0.00334014,84418.0,84417.0,0.15195074]
[1743201004741,0.00334014,84418.0,84417.0,0.15669974]
[1743201005159,0.00334014,84418.0,84417.0,0.155914]
[1743201006687,0.00334014,84418.0,84417.0,0.1562518]
[1743201006885,0.00350904,84418.0,84417.0,0.1562518]
[1743201007294,0.00350904,84418.0,84417.0,0.15703719]
[1743201008311,0.00350904,84418.0,84417.0,0.35139483]
[1743201008503,0.00350904,84418.0,84417.0,0.39650944]
[1743201008870,0.00350904,84418.0,84417.0,0.40329868]
[1743201010611,0.00350904,84418.0,84417.0,0.20882104]
[1743201011366,0.00350904,84418.0,84417.0,0.1990318]
[1743201011561,0.00350904,84418.0,84417.0,0.1960318]
[1743201011843,0.00350904,84418.0,84417.0,0.2070318]
[1743201012717,0.00350904,84418.0,84417.0,0.20781696]
[1743201012944,0.00350904,84418.0,84417.0,0.3220746]
[1743201013175,0.00350904,84418.0,84417.0,0.32128944]
[1743201013872,0.00350904,84418.0,84417.0,0.32807338]
[1743201016617,0.00350904,84418.0,84417.0,0.32843338]
[1743201017806,0.0001689,84418.0,84417.0,0.32843338]
[1743201018206,0.0001689,84418.0,84417.0,0.89255338]
[1743201022130,0.0001689,84418.0,84417.0,0.73235574]
[1743201023115,0.0001689,84418.0,84417.0,0.7255718]
[1743201023694,0.0001689,84418.0,84417.0,0.5920518]
[1743201023862,0.0001689,84418.0,84417.0,0.7255718]
[1743201024888,0.0001689,84418.0,84417.0,0.5920518]
[1743201025085,0.0001689,84418.0,84417.0,0.7254918]
[1743201034220,0.0001689,84418.0,84417.0,0.83974944]
[1743201034444,0.0001689,84418.0,84417.0,0.87659583]
[1743201036569,0.0001689,84418.0,84417.0,0.88338705]
[1743201037600,0.0001689,84418.0,84417.0,0.73212302]
[1743201038323,0.0001689,84418.0,84417.0,0.84638066]
[1743201038477,0.0001689,84418.0,84417.0,0.92198066]
[1743201038676,0.0001689,84418.0,84417.0,0.9733726]
[1743201038878,0.0001689,84418.0,84417.0,1.0200726]
[1743201039926,0.0001689,84418.0,84417.0,1.0140726]
[1743201040140,0.0001689,84418.0,84417.0,1.0090726]
[1743201040346,0.0001689,84418.0,84417.0,1.0150726]
[1743201040671,0.0001689,84418.0,84417.0,0.9444726]
[1743201040873,0.0001689,84418.0,84417.0,1.32012151]
[1743201041487,0.0001689,84418.0,84417.0,1.18684151]